fUSD/lending_fUSD_20251113
["ID","MTS","AMOUNT","RATE_DAILY","PERIOD"]
[393883043,1763069446089,-29310.91863816,0.00018,2]
[393883044,1763069446207,-846.1,0.00018,2]
[393883048,1763069466664,10000.01,0.00016872,2]
[393883049,1763069466688,10000.01,0.00016872,2]
[393883050,1763069466712,10000.01,0.00016872,2]
[393883051,1763069466735,3304.9721,0.00016872,2]
[393883052,1763069470130,500.0,0.00016973,2]
[393883053,1763069478088,500.0,0.00016971,2]
[393883054,1763069478150,500.0,0.00016971,2]
[393883055,1763069478205,500.0,0.00016971,2]
[393883056,1763069478268,500.0,0.00016971,2]
[393883057,1763069478329,500.0,0.00016971,2]
[393883058,1763069478389,500.0,0.00016971,2]
[393883059,1763069478464,500.0,0.00016971,2]
[393883060,1763069478522,500.0,0.00016971,2]
[393883061,1763069478572,500.0,0.00016971,2]
[393883062,1763069478783,522.2544577,0.00016971,2]
[393883063,1763069478845,500.0,0.00016971,2]
[393883064,1763069478879,500.0,0.00016971,2]
[393883065,1763069478931,172.7834423,0.00016971,2]
[393883066,1763069478958,327.2165577,0.00016971,2]
[393883067,1763069478999,500.0,0.00016971,2]
[393883068,1763069479032,500.0,0.00016971,2]
[393883069,1763069479087,500.0,0.00016971,2]
[393883070,1763069479124,500.0,0.00016971,2]
[393883071,1763069479157,500.0,0.00016971,2]
[393883072,1763069479199,500.0,0.00016971,2]
[393883073,1763069479239,500.0,0.00016971,2]
[393883074,1763069485122,1000.0,0.00016873,2]
[393883075,1763069487185,500.0,0.00016973,2]
[393883076,1763069493800,4672.7934423,0.00016872,2]
[393883077,1763069493826,10000.01,0.00016872,2]
[393883078,1763069493851,10000.01,0.00016872,2]
[393883079,1763069493877,10000.01,0.00016872,2]
[393883080,1763069493901,10000.01,0.00016872,2]
[393883081,1763069493926,10000.01,0.00016872,2]
[393883082,1763069493950,10000.01,0.00016872,2]
[393883083,1763069493976,10000.01,0.00016872,2]
[393883084,1763069494001,10000.01,0.00016872,2]
[393883085,1763069494025,10000.01,0.00016872,2]
[393883086,1763069494054,161.32817445,0.00016872,2]
[393883087,1763069494084,177.3436511,0.00016872,2]
[393883088,1763069494111,152.65617445,0.00016872,2]
[393883089,1763069504129,-10000.01,0.00016872,2]
[393883090,1763069504405,-10000.01,0.00016872,2]
[393883091,1763069504985,-10000.01,0.00016872,2]
[393883092,1763069505006,-10000.01,0.00016872,2]
[393883093,1763069505207,-10000.01,0.00016872,2]
[393883094,1763069505469,-10000.01,0.00016872,2]
[393883095,1763069508596,-10000.01,0.00016872,2]
[393883096,1763069508845,-10000.01,0.00016872,2]
[393883097,1763069509153,-10000.01,0.00016872,2]
[393883098,1763069511523,-10000.01,0.00016872,2]
[393883099,1763069511799,-10000.01,0.00016872,2]
[393883100,1763069512014,-10000.01,0.00016872,2]
[393883101,1763069512380,-10000.01,0.00016872,2]
[393883102,1763069512670,-10000.01,0.00016872,2]
[393883103,1763069512860,-10000.01,0.00016872,2]
[393883104,1763069513267,-503.24610906,0.00016872,2]
[393883105,1763069514676,-10000.01,0.00016872,2]
[393883106,1763069515490,-10000.01,0.00016872,2]
[393883107,1763069515505,-10000.01,0.00016872,2]
[393883108,1763069515519,-10000.01,0.00016872,2]
[393883109,1763069517735,-10000.01,0.00016872,2]
[393883110,1763069517993,-10000.01,0.00016872,2]
[393883111,1763069518269,-10000.01,0.00016872,2]
[393883112,1763069518542,-10000.01,0.00016872,2]
[393883113,1763069518949,-10000.01,0.00016872,2]
[393883114,1763069519073,-10000.01,0.00016872,2]
[393883115,1763069520957,-10000.01,0.00016872,2]
[393883116,1763069528290,-300.0,0.00016871,2]
[393883117,1763069528339,-9400.01,0.00016872,2]
[393883118,1763069534522,-10000.01,0.00016872,2]
[393883119,1763069534852,-10000.01,0.00016872,2]
[393883120,1763069535097,-10000.01,0.00016872,2]
[393883121,1763069535329,-10000.01,0.00016872,2]
[393883122,1763069548215,-10000.01,0.00016872,2]
[393883123,1763069553853,-4932.22244864,0.00016872,2]
[393883126,1763069557118,-298.2281932,0.00016971,2]
[393883127,1763069557150,-500.0,0.00016971,2]
[393883128,1763069557184,-500.0,0.00016971,2]
[393883129,1763069557217,-262.16466098,0.00016971,2]
[393883130,1763069557255,-500.0,0.00016971,2]
[393883223,1763069569939,-156.66465127,0.00016973,2]
[393883224,1763069571475,-300.0,0.00016973,2]
[393883225,1763069572394,-43.33534873,0.00016973,2]
[393883226,1763069572424,-500.0,0.00016973,2]
[393883227,1763069572454,-500.0,0.00016973,2]
[393883228,1763069572484,-500.0,0.00016973,2]
[393883231,1763069578132,500.0,0.00016973,2]
[393883232,1763069587392,-1000.0,0.00016998,2]
[393883233,1763069587422,-160.0,0.00016998,2]
[393883234,1763069588516,7680.01,7.945e-05,2]
[393883235,1763069588539,9166.488783,7.945e-05,2]
[393883236,1763069593165,567.08701969,0.00016973,2]
[393883237,1763069595349,266.43419731,0.00016973,2]
[393883238,1763069595384,233.56580269,0.00016973,2]
[393883242,1763069628694,641.929974,0.00016973,2]
[393883244,1763069654451,-500.0,0.000172,6]
[393883245,1763069654472,-1100.0,0.000173,6]
[393883246,1763069654499,-1700.0,0.000174,6]
[393883247,1763069654520,-2300.0,0.000175,6]
[393883248,1763069654541,-2800.0,0.000176,6]
[393883249,1763069654562,-500.0,0.000177,6]
[393883250,1763069654583,-500.0,0.000178,6]
[393883251,1763069654603,-500.0,0.000179,6]
[393883259,1763069712504,505.31022957,0.00016973,2]
[393883260,1763069722007,-999.0,0.00017035,3]
[393883261,1763069722028,-300.0,0.00017063,2]
[393883262,1763069722050,-1200.0,0.00017092,2]
[393883263,1763069722070,-300.0,0.00017092,2]
[393883264,1763069722093,-1200.0,0.00017092,2]
[393883265,1763069722116,-14013.6488655,0.00017093,2]
[393883266,1763069722136,-365.21,0.00017149,2]
[393883267,1763069722156,-6096.1411345,0.00017174,2]
[393883268,1763069769435,551.48,0.0001686,2]
[393883269,1763069795984,200.0,0.00016861,2]
[393883272,1763069821798,500.0,0.00016973,2]
[393883273,1763069833680,-500.0,0.000172,6]
[393883274,1763069833701,-1100.0,0.000173,6]
[393883275,1763069833722,-1700.0,0.000174,6]
[393883276,1763069833742,-2300.0,0.000175,6]
[393883278,1763069904681,-2800.0,0.000176,6]
[393883279,1763069916471,-500.0,0.000177,6]
[393883286,1763069938009,-500.0,0.000178,6]
[393883288,1763069953035,2154.5901528,0.0001698,2]
[393883289,1763069960164,-500.0,0.000179,6]
[393883290,1763069990295,5213.13384094,0.0001698,2]
[393883291,1763069990318,6291.14724636,0.0001698,2]
[393883292,1763069990995,-300.0,0.00017173,2]
[393883293,1763069991018,-262.0,0.00017174,2]
[393883294,1763070013462,1852.42,0.00016906,2]
[393883297,1763070092041,45153.11,0.0004092,30]
[393883298,1763070124447,500.0,0.00016973,2]
[393883299,1763070154931,200.0,0.00016862,2]
[393883303,1763070374240,150.0,0.000162,2]
[393883304,1763070374308,150.0,0.00016278,2]
[393883305,1763070374373,150.0,0.00016357,2]
[393883306,1763070374405,150.0,0.00016435,2]
[393883307,1763070374463,150.0,0.00016513,2]
[393883308,1763070374533,150.0,0.00016591,2]
[393883309,1763070375265,150.0,0.0001667,2]
[393883310,1763070375295,106.44275364,0.00016748,2]
[393883311,1763070375324,43.55724636,0.00016748,2]
[393883312,1763070375368,150.0,0.00016826,2]
[393883313,1763070375424,150.0,0.00016904,2]
[393883314,1763070375458,150.0,0.00016983,2]
[393883495,1763070435787,198.03,0.00016767,2]
[393883608,1763070611625,9308.42275364,0.00016986,2]
[393883609,1763070611650,10000.01,0.00016986,2]
[393883610,1763070611673,10000.01,0.00016986,2]
[393883611,1763070611698,10000.01,0.00016986,2]
[393883612,1763070611721,10000.01,0.00016986,2]
[393883613,1763070611744,10000.01,0.00016986,2]
[393883614,1763070611767,10000.01,0.00016986,2]
[393883615,1763070611790,10000.01,0.00016986,2]
[393883616,1763070625802,213.23130476,0.00016836,2]
[393883617,1763070628140,1655.86399304,0.00016961,2]
[393883619,1763070628171,-155.02937855,0.00016986,2]
[393883628,1763070632057,-1743.76049974,0.00016986,2]
[393883629,1763070632068,-885.27790424,0.00016986,2]
[393883630,1763070632080,-38012.75946383,0.00016986,2]
[393883631,1763070632089,-150.0,0.00017061,2]
[393883632,1763070632099,-300.0,0.00017092,2]
[393883633,1763070632108,-300.0,0.0001713,2]
[393883634,1763070632118,-150.0,0.00017139,2]
[393883635,1763070632127,-1200.0,0.00017173,2]
[393883636,1763070632136,-300.0,0.00017173,2]
[393883637,1763070632145,-1200.0,0.00017173,2]
[393883638,1763070632155,-16414.0188655,0.00017174,2]
[393883639,1763070632164,-500.0,0.000172,2]
[393883640,1763070632174,-200.0,0.000172,6]
[393883641,1763070632183,-150.0,0.00017217,2]
[393883642,1763070632192,-150.0,0.00017296,2]
[393883643,1763070632202,-500.0,0.000173,6]
[393883644,1763070632211,-150.0,0.00017374,2]
[393883645,1763070632220,-8324.85212007,0.000174,2]
[393883646,1763070632229,-700.0,0.000174,6]
[393883647,1763070632238,-150.0,0.00017452,2]
[393883648,1763070632247,-150.0,0.00017462,2]
[393883649,1763070632257,-1000.0,0.000175,6]
[393883650,1763070632266,-150.0,0.0001753,2]
[393883651,1763070632276,-1200.0,0.000176,6]
[393883652,1763070632286,-150.0,0.00017609,2]
[393883653,1763070632296,-1712.49765199,0.00017655,2]
[393883654,1763070632305,-500.0,0.0001766,2]
[393883655,1763070632315,-150.0,0.00017687,2]
[393883656,1763070632326,-200.0,0.000177,6]
[393883657,1763070632335,-550.0,0.000177,2]
[393883659,1763070632345,-2784.77363026,0.00017722,2]
[393883661,1763070632356,-3513.24586974,0.00017722,2]
[393883663,1763070632366,-234.6117,0.00017722,2]
[393883665,1763070632375,-280.121,0.00017722,2]
[393883667,1763070632384,-500.0,0.00017748,2]
[393883669,1763070632394,-2500.0,0.00017756,2]
[393883671,1763070632404,-150.0,0.00017765,2]
[393883673,1763070632413,-151.0,0.00017789,2]
[393883675,1763070632423,-151.0,0.00017789,2]
[393883678,1763070632432,-151.0,0.00017789,2]
[393883681,1763070632442,-151.0,0.00017789,2]
[393883683,1763070632452,-151.0,0.00017789,2]
[393883685,1763070632461,-151.0,0.00017789,2]
[393883687,1763070632471,-151.0,0.00017789,2]
[393883689,1763070632481,-151.0,0.00017789,2]
[393883691,1763070632491,-151.0,0.00017789,2]
[393883693,1763070632502,-151.0,0.00017789,2]
[393883695,1763070632512,-151.0,0.00017789,2]
[393883697,1763070632521,-151.0,0.00017789,2]
[393883698,1763070632532,-151.0,0.00017789,2]
[393883700,1763070632545,-151.0,0.00017789,2]
[393883702,1763070632554,-151.0,0.00017789,2]
[393883703,1763070632564,-151.0,0.00017789,2]
[393883704,1763070632577,-151.0,0.00017789,2]
[393883706,1763070632586,-151.0,0.00017789,2]
[393883708,1763070632596,-151.0,0.00017789,2]
[393883710,1763070632605,-151.0,0.00017789,2]
[393883711,1763070632617,-151.0,0.00017789,2]
[393883712,1763070632627,-151.0,0.00017789,2]
[393883713,1763070632636,-158.25999202,0.00017789,2]
[393883714,1763070632646,-151.0,0.00017789,2]
[393883715,1763070632655,-151.0,0.00017789,2]
[393883716,1763070632665,-6083.055,0.00017799,2]
[393883717,1763070632674,-2500.0,0.000178,2]
[393883718,1763070632683,-2500.0,0.000178,3]
[393883719,1763070632693,-1000.0,0.000178,2]
[393883720,1763070632702,-5709.73779597,0.000178,2]
[393883721,1763070632711,-5820.14322811,0.000178,2]
[393883722,1763070632949,-12329.72097146,0.000178,2]
[393883723,1763070632959,-163.36772212,0.000178,2]
[393883724,1763070632970,-162.81671974,0.000178,2]
[393883725,1763070632979,-200.0,0.000178,6]
[393883726,1763070632989,-5709.73779589,0.00017811,2]
[393883727,1763070632999,-18149.86419951,0.00017811,2]
[393883728,1763070633009,-163.36772208,0.00017817,2]
[393883729,1763070633019,-5709.73779589,0.00017822,2]
[393883730,1763070633028,-18149.86419951,0.00017822,2]
[393883731,1763070633038,-5709.73779589,0.00017833,2]
[393883732,1763070633047,-8973.02964491,0.00017833,2]
[393883733,1763070633059,-625.92812456,0.00017833,2]
[393883734,1763070633073,-1420.2,0.00017833,2]
[393883735,1763070633084,-938.58626969,0.00017833,2]
[393883736,1763070633149,-6192.12016035,0.00017833,2]
[393883737,1763070633159,-163.36772208,0.00017833,2]
[393883738,1763070633168,-150.0,0.00017843,2]
[393883739,1763070633177,-5709.73779589,0.00017844,2]
[393883740,1763070633186,-4153.32351903,0.00017844,2]
[393883746,1763070638013,-162.81671973,0.0001782,2]
[393883747,1763070638022,-500.0,0.00017821,2]
[393883748,1763070638032,-294.20147413,0.00017821,2]
[393883749,1763070638042,-275.21913048,0.00017821,2]
[393883750,1763070638052,-500.0,0.00017821,2]
[393883751,1763070638061,-271.34454938,0.00017821,2]
[393883752,1763070638076,-228.65545062,0.00017821,2]
[393883753,1763070638085,-500.0,0.00017821,2]
[393883754,1763070638095,-500.0,0.00017821,2]
[393883755,1763070638104,-500.0,0.00017821,2]
[393883756,1763070638113,-500.0,0.00017821,2]
[393883757,1763070638123,-500.0,0.00017821,2]
[393883758,1763070638132,-500.0,0.00017821,2]
[393883759,1763070638142,-500.0,0.00017821,2]
[393883760,1763070638152,-500.0,0.00017821,2]
[393883761,1763070638161,-500.0,0.00017821,2]
[393883762,1763070638170,-500.0,0.00017821,2]
[393883763,1763070638179,-500.0,0.00017821,2]
[393883764,1763070638189,-500.0,0.00017821,2]
[393883766,1763070638198,-500.0,0.00017821,2]
[393883768,1763070638208,-500.0,0.00017821,2]
[393883770,1763070638217,-500.0,0.00017821,2]
[393883772,1763070638227,-500.0,0.00017821,2]
[393883774,1763070638236,-507.83231478,0.00017821,2]
[393883776,1763070638245,-500.0,0.00017821,2]
[393883778,1763070638255,-500.0,0.00017821,2]
[393883780,1763070638263,-500.0,0.00017821,2]
[393883782,1763070638272,-500.0,0.00017821,2]
[393883784,1763070638282,-500.0,0.00017821,2]
[393883786,1763070638291,-500.0,0.00017821,2]
[393883788,1763070638301,-500.0,0.00017821,2]
[393883790,1763070638310,-162.81671973,0.0001784,2]
[393883792,1763070638320,-13996.54068048,0.00017844,2]
[393883794,1763070638329,-163.36772208,0.0001785,2]
[393883796,1763070638339,-5709.73779589,0.00017856,2]
[393883798,1763070638348,-18149.86419951,0.00017856,2]
[393883800,1763070638357,-200.0,0.00017856,2]
[393883802,1763070638366,-5709.73779589,0.00017867,2]
[393883804,1763070638376,-18149.86419951,0.00017867,2]
[393883806,1763070638385,-163.36772208,0.00017867,2]
[393883808,1763070638395,-184.30084438,0.00017873,2]
[393883810,1763070638404,-500.0,0.00017873,2]
[393883812,1763070638414,-501.0450611,0.00017873,2]
[393883814,1763070638423,-500.0,0.00017873,2]
[393883816,1763070638432,-171.31783739,0.00017873,2]
[393883818,1763070638442,-500.0,0.00017873,2]
[393883820,1763070638451,-500.0,0.00017873,2]
[393883822,1763070638461,-500.0,0.00017873,2]
[393883824,1763070638476,-500.0,0.00017873,2]
[393883826,1763070638491,-500.0,0.00017873,2]
[393883828,1763070638500,-500.0,0.00017873,2]
[393883830,1763070638510,-500.0,0.00017873,2]
[393883832,1763070638518,-500.0,0.00017873,2]
[393883833,1763070638528,-500.0,0.00017877,2]
[393883834,1763070638539,-500.0,0.00017877,2]
[393883835,1763070638551,-500.0,0.00017877,2]
[393883837,1763070638560,-500.0,0.00017877,2]
[393883838,1763070638570,-500.0,0.00017877,2]
[393883840,1763070638580,-561.46292857,0.00017877,2]
[393883845,1763070638734,-5709.73779589,0.00017878,2]
[393883846,1763070638749,-18149.86419951,0.00017878,2]
[393883847,1763070638759,-163.36772208,0.00017883,2]
[393883848,1763070638769,-5709.73779589,0.00017889,2]
[393883849,1763070638778,-18149.86419951,0.00017889,2]
[393883850,1763070638787,-163.58,0.0001789,2]
[393883851,1763070638797,-421.77392304,0.00017899,2]
[393883852,1763070638807,-500.0,0.00017899,2]
[393883853,1763070638816,-500.0,0.00017899,2]
[393883854,1763070638827,-500.0,0.00017899,2]
[393883855,1763070638836,-500.0,0.00017899,2]
[393883856,1763070638845,-285.43234368,0.00017899,2]
[393883857,1763070638854,-500.0,0.00017899,2]
[393883858,1763070638864,-228.13781029,0.00017899,2]
[393883859,1763070638873,-500.0,0.00017899,2]
[393883860,1763070638883,-218.93,0.00017899,2]
[393883861,1763070638892,-500.0,0.00017899,2]
[393883862,1763070638901,-500.0,0.00017899,2]
[393883863,1763070638911,-500.0,0.00017899,2]
[393883864,1763070638921,-500.0,0.00017899,2]
[393883865,1763070638930,-443.73507614,0.00017899,2]
[393883866,1763070638939,-500.0,0.00017899,2]
[393883867,1763070638949,-500.0,0.00017899,2]
[393883868,1763070638960,-500.0,0.00017899,2]
[393883869,1763070638969,-500.0,0.00017899,2]
[393883870,1763070638979,-500.0,0.00017899,2]
[393883871,1763070638989,-500.0,0.00017899,2]
[393883872,1763070638998,-500.0,0.00017899,2]
[393883873,1763070639008,-500.0,0.00017899,2]
[393883874,1763070639017,-500.0,0.00017899,2]
[393883875,1763070639027,-500.0,0.00017899,2]
[393883876,1763070639038,-1000.0,0.000179,2]
[393883877,1763070639048,-2255.3697,0.000179,2]
[393883878,1763070639057,-420000.0,0.000179,2]
[393883879,1763070639068,-2500.0,0.000179,2]
[393883880,1763070639079,-200.0,0.000179,2]
[393883881,1763070639088,-2500.0,0.000179,3]
[393883882,1763070639097,-11469.24478609,0.000179,2]
[393883883,1763070639107,-200.0,0.000179,6]
[393883884,1763070639117,-5709.73779589,0.000179,2]
[393883885,1763070639127,-18149.86419951,0.000179,2]
[393883886,1763070639136,-163.36772208,0.000179,2]
[393883887,1763070639146,-167.20348368,0.000179,3]
[393883888,1763070639155,-194.52604902,0.000179,2]
[393883889,1763070639165,-5170.32231685,0.000179,2]
[393883890,1763070639174,-221.0,0.00017919,2]
[393883891,1763070639183,-150.0,0.00017922,2]
[393883892,1763070639193,-395.94904231,0.00017933,2]
[393883893,1763070639202,-151.0,0.00017942,2]
[393883894,1763070639211,-502.14268274,0.00017973,2]
[393883895,1763070639220,-502.7946782,0.00017973,2]
[393883896,1763070639230,-504.68800049,0.00017973,2]
[393883897,1763070639239,-500.0,0.00017973,2]
[393883898,1763070639249,-500.0,0.00017973,2]
[393883899,1763070639258,-500.0,0.00017973,2]
[393883900,1763070639268,-500.0,0.00017973,2]
[393883901,1763070639277,-342.70918904,0.00017973,2]
[393883902,1763070639287,-500.0,0.00017973,2]
[393883903,1763070639300,-500.0,0.00017973,2]
[393883904,1763070639315,-500.0,0.00017973,2]
[393883905,1763070639327,-500.0,0.00017973,2]
[393883906,1763070639336,-500.0,0.00017973,2]
[393883907,1763070639346,-500.0,0.00017973,2]
[393883908,1763070639355,-535.53318786,0.00017973,2]
[393883909,1763070639366,-363.54680066,0.00017973,2]
[393883910,1763070639375,-163.85188298,0.00017973,2]
[393883911,1763070639384,-500.98861298,0.00017973,2]
[393883912,1763070639393,-160.13145735,0.00017973,2]
[393883913,1763070639402,-500.0,0.00017973,2]
[393883914,1763070639411,-503.18215431,0.00017973,2]
[393883915,1763070639420,-512.6477435,0.00017973,2]
[393883916,1763070639430,-151.0,0.00017982,2]
[393883917,1763070639439,-163.58,0.0001799,2]
[393883918,1763070639449,-163.58,0.0001799,2]
[393883919,1763070639458,-163.58,0.0001799,2]
[393883920,1763070639467,-500.0,0.00017998,2]
[393883921,1763070639477,-500.0,0.00017998,2]
[393883922,1763070639486,-421.960617,0.00017998,2]
[393883923,1763070639495,-6920.22685387,0.00017999,2]
[393883924,1763070639504,-300.0,0.00017999,2]
[393883925,1763070639516,-300.0,0.00017999,2]
[393883926,1763070639526,-500.0,0.00017999,2]
[393883927,1763070639535,-500.0,0.00017999,2]
[393883928,1763070639549,-500.0,0.00017999,2]
[393883929,1763070639560,-500.0,0.00017999,2]
[393883930,1763070639569,-500.0,0.00017999,2]
[393883931,1763070639580,-500.0,0.00017999,2]
[393883932,1763070639591,-500.0,0.00017999,2]
[393883933,1763070639600,-500.0,0.00017999,2]
[393883934,1763070639610,-347.29333909,0.00017999,2]
[393883935,1763070639620,-300.0,0.00017999,2]
[393883936,1763070639629,-500.0,0.00017999,2]
[393883937,1763070639639,-500.0,0.00017999,2]
[393883938,1763070639651,-500.0,0.00017999,2]
[393883939,1763070639661,-500.0,0.00017999,2]
[393883940,1763070639671,-500.0,0.00017999,2]
[393883941,1763070639680,-649.93787883,0.00017999,2]
[393883942,1763070639689,-500.0,0.00017999,2]
[393883943,1763070639698,-500.0,0.00017999,2]
[393883944,1763070639708,-500.0,0.00017999,2]
[393883945,1763070639717,-500.0,0.00017999,2]
[393883946,1763070639727,-500.0,0.00017999,2]
[393883947,1763070639736,-500.0,0.00017999,2]
[393883948,1763070639746,-337.97311388,0.00017999,2]
[393883949,1763070639755,-500.0,0.00017999,2]
[393883950,1763070639765,-366.62136617,0.00017999,2]
[393883951,1763070639773,-500.0,0.00017999,2]
[393883952,1763070639783,-500.0,0.00017999,2]
[393883953,1763070639792,-500.0,0.00017999,2]
[393883954,1763070639802,-500.0,0.00017999,2]
[393883955,1763070639812,-500.0,0.00017999,2]
[393883956,1763070639821,-500.0,0.00017999,2]
[393883957,1763070639833,-500.0,0.00017999,2]
[393883958,1763070639843,-500.0,0.00017999,2]
[393883959,1763070639853,-500.0,0.00017999,2]
[393883960,1763070639862,-500.0,0.00017999,2]
[393883961,1763070639872,-500.0,0.00017999,2]
[393883962,1763070639881,-500.0,0.00017999,2]
[393883963,1763070639891,-405.75314251,0.00017999,2]
[393883964,1763070639900,-402.24008145,0.00017999,2]
[393883965,1763070639909,-500.0,0.00017999,2]
[393883966,1763070639918,-500.0,0.00017999,2]
[393883967,1763070639927,-500.0,0.00017999,2]
[393883968,1763070639937,-500.0,0.00017999,2]
[393883969,1763070639946,-500.0,0.00017999,2]
[393883970,1763070639955,-500.0,0.00017999,2]
[393883971,1763070639965,-500.0,0.00017999,2]
[393883973,1763070639974,-500.0,0.00017999,2]
[393883975,1763070639983,-500.0,0.00017999,2]
[393883977,1763070639993,-500.0,0.00017999,2]
[393883978,1763070640002,-500.0,0.00017999,2]
[393883980,1763070640011,-151.0,0.00017999,2]
[393883981,1763070640020,-154.45764357,0.00018,2]
[393883983,1763070640030,-10481696.46421785,0.00018,2]
[393883984,1763070640050,-3751.35969108,0.00018,2]
[393883985,1763070640065,-285.06134771,0.00018,2]
[393883986,1763070640076,-1877.37012887,0.00018,2]
[393883987,1763070640410,-298.41663778,0.00018,2]
[393883988,1763070640429,-1610.27475629,0.00018,2]
[393883989,1763070640440,-1109.09975115,0.00018,2]
[393883992,1763070640539,-689.72524371,0.00018,2]
[393883993,1763070640551,-5447806.58901268,0.00018,2]
[393883994,1763070640560,-4194.4378873,0.00018,2]
[393883995,1763070640570,-2000.0,0.00018,2]
[393883996,1763070640583,-200.0,0.00018,2]
[393883997,1763070640593,-10356.3634563,0.00018009,2]
[393883998,1763070640603,-881.0,0.00018046,2]
[393883999,1763070640612,-200.0,0.00018079,2]
[393884000,1763070640623,-542.76,0.00018082,2]
[393884001,1763070640633,-881.0,0.00018086,2]
[393884002,1763070640644,-300.0,0.00018107,2]
[393884003,1763070640654,-218.93,0.00018173,2]
[393884004,1763070640664,-200.0,0.0001818,2]
[393884005,1763070640673,-3217.38,0.00018273,2]
[393884006,1763070640683,-881.0,0.00018274,2]
[393884007,1763070640693,-5888.0,0.00018288,2]
[393884008,1763070640704,-200.0,0.00018362,2]
[393884009,1763070640716,-881.0,0.00018399,2]
[393884010,1763070640726,-881.0,0.0001841,2]
[393884011,1763070640735,-500.0,0.00018421,2]
[393884012,1763070640744,-431.70775828,0.00018421,2]
[393884013,1763070640754,-1000.0,0.00018421,2]
[393884015,1763070640898,-507.19756014,0.00018421,2]
[393884016,1763070640907,-218.95,0.00018447,2]
[393884017,1763070640917,-881.0,0.00018464,2]
[393884018,1763070640926,-300.0,0.00018532,2]
[393884019,1763070640936,-300.0,0.00018532,2]
[393884020,1763070640946,-150.99,0.00018533,2]
[393884021,1763070640955,-1209.86,0.00018533,2]
[393884022,1763070640964,-547.68,0.00018533,2]
[393884023,1763070640974,-9999.99,0.00018533,2]
[393884024,1763070640983,-9999.99,0.00018533,2]
[393884025,1763070640992,-566.26,0.00018533,2]
[393884026,1763070641002,-1428.56,0.00018533,2]
[393884027,1763070641011,-582.86,0.00018533,2]
[393884028,1763070641020,-200.0,0.00018545,2]
[393884029,1763070641029,-881.0,0.0001862,2]
[393884030,1763070641039,-881.0,0.00018623,2]
[393884031,1763070641048,-881.0,0.00018675,2]
[393884032,1763070641059,-300.0,0.00018684,2]
[393884033,1763070641069,-20748.7,0.00018685,2]
[393884034,1763070641081,-167.6,0.00018694,2]
[393884035,1763070641090,-300.0,0.00018724,2]
[393884036,1763070641099,-200.0,0.00018731,2]
[393884037,1763070641108,-881.0,0.00018757,2]
[393884038,1763070641117,-881.0,0.0001876,2]
[393884039,1763070641129,-542.76,0.0001876,2]
[393884040,1763070641138,-300.0,0.00018767,2]
[393884041,1763070641147,-250.0,0.00018767,2]
[393884042,1763070641156,-250.0,0.00018767,2]
[393884043,1763070641165,-150.21,0.000188,2]
[393884044,1763070641175,-150.21,0.000188,2]
[393884045,1763070641184,-150.21,0.000188,2]
[393884046,1763070641193,-150.21,0.000188,2]
[393884047,1763070641203,-150.21,0.000188,2]